[Event "Swietokrzyskie IM Chess-ch 2022"]
[Site "Zagnansk"]
[Date "2022.05.05"]
[Round "8.3"]
[White "Kotyk, Michael"]
[Black "Krzywda, CM Andrzej"]
[Result "0-1"]
[ECO "A01"]
[WhiteElo "2170"]
[BlackElo "2152"]
[Annotator "TA"]
[PlyCount "80"]
[EventDate "2022.04.29"]
[EventCountry "POL"]
[SourceTitle "playchess.com"]
[Source "ChessBase"]
[SourceQuality "1"]
[TimeControl "40/5400+30:1800+30"]

{[%evp 14,80,-14,-33,0,0,0,-29,-13,-20,-16,-12,-12,-21,18,4,14,-15,-21,-13,-22,-52,-4,-16,-15,-92,-92,-85,-85,-89,-70,-95,-93,-111,35,-108,-89,-305,-300,-303,-299,-405,-214,-597,-579,-954,-964,-787,-597,-848,-858,-939,-915,-1042,-1040,-1284,-1112,-1395,-1094,-1485,-1524,-3096,-3681,-5302,-1177,-29973,-29969,-29987,-29988]} 1. b3 {[%emt 0:00:02]} c5 {[%emt 0:06:38]} 2. Bb2 {[%emt 0:00:11]} Nc6 {[%emt 0:00:03]} 3. f4 {[%emt 0:02:07]} Nf6 {[%emt 0:02:37]} 4. Nf3 {[%emt 0:00:40]} g6 {[%emt 0:00:15]} 5. e3 {[%emt 0:07:21]} Bg7 {[%emt 0:00:05]} 6. Be2 {[%emt 0:03:41]} O-O {[%emt 0:00:16]} 7. O-O {[%emt 0:00:06]} d6 {[%emt 0:00:53]} 8. Qe1 {[%emt 0:05:20] is the legacy move (8.a4).} e5 {[%emt 0:05:24] A02: Bird's Opening.} 9. fxe5 {[%emt 0:03:24]} Ng4 {[%emt 0:00:43][%cal Rd6e5] [#]} 10. e4 $146 {[%emt 0:07:57]} ({Predecessor:} 10. Nc3 Ngxe5 11. Qg3 Nb4 12. Rac1 Nxf3+ 13. Qxf3 Nxa2 14. Ra1 Nxc3 15. Bxc3 Bxc3 16. dxc3 {0-1 (38) Blatny,P (2494)-Bocharov,D (2527) Dos Hermanas 2004}) 10... Ngxe5 {[%emt 0:04:31] Black has an edge.} 11. Nxe5 {[%emt 0:01:40]} dxe5 {[%emt 0:01:59]} 12. Bc4 {[%emt 0:06:59]} Nd4 {[%emt 0:05:51]} 13. Na3 {[%emt 0:00:06][%cal Bb1a3,Ba3b5,Bb5d6][%mdl 32]} Qg5 {[%emt 0:03:17]} 14. Qe3 {[%emt 0:09:19]} Bh6 {[%emt 0:11:47][%cal Bg7h6,Bh6g5,Bg5e3][%mdl 32]} 15. Bxd4 {[%emt 0:01:16]} cxd4 {[%emt 0:00:22]} ({Don't take} 15... exd4 16. Qxg5 Bxg5 17. Rxf7 $1 Rxf7 18. Rf1 $16) 16. Qxg5 {[%emt 0:00:56]} Bxg5 {[%emt 0:00:05]} 17. Nb5 {[%emt 0:17:44][%cal Of1f7]} Kg7 {[%emt 0:05:00]} (17... Be6 $15 18. d3 Bxc4 19. bxc4 a6) 18. Nd6 {[%emt 0:01:07][%cal Rd6f7]} f5 {[%emt 0:07:59][%cal Bf7f5,Bf5f4][%mdl 32]} 19. d3 {[%emt 0:02:16]} (19. exf5 $11 gxf5 20. Rae1) 19... Be3+ $1 $17 {[%emt 0:00:27]} 20. Kh1 {[%emt 0:00:02]} f4 $1 {[%emt 0:00:12]} 21. h3 {[%emt 0:16:48]} h5 {[%emt 0:00:16]} 22. Bd5 {[%emt 0:01:01]} Rb8 {[%emt 0:06:26]} 23. Nc4 {[%emt 0:01:33] [#]} Kf6 {[%emt 0:04:12]} ({Black should try} 23... Re8 $1 $17) 24. Kh2 {[%emt 0:04:11]} (24. Rae1 $1 $14 {stays ahead.}) 24... g5 {[%emt 0:01:01]} 25. g3 $2 {[%emt 0:00:42] [#] This costs White the game.} (25. h4 $17 {was called for.}) 25... b5 $1 $19 {[%emt 0:07:13]} 26. Nxe3 {[%emt 0:00:17]} dxe3 {[%emt 0:00:08]} 27. d4 {[%emt 0:00:11]} b4 {[%emt 0:09:52]} (27... Bd7 $142 28. gxf4 gxf4) 28. Rae1 $2 {[%emt 0:04:51]} (28. Bc4 {nothing else works.}) 28... Ba6 {[%emt 0:00:40]} 29. Bc4 {[%emt 0:01:01]} Bxc4 {[%emt 0:00:21]} 30. bxc4 {[%emt 0:00:01][%mdl 4096] Endgame KRR-KRR} Ke6 {[%emt 0:02:00]} 31. gxf4 {[%emt 0:01:32]} gxf4 {[%emt 0:00:32]} 32. d5+ {[%emt 0:00:19]} Kd6 {[%emt 0:00:12]} 33. Re2 {[%emt 0:01:40]} Rbc8 {[%emt 0:01:26]} 34. Rg1 {[%emt 0:00:28]} Rf6 {[%emt 0:00:43]} 35. Rf1 {[%emt 0:00:36]} Rg6 {[%emt 0:01:02]} 36. Ra1 {[%emt 0:00:33]} Rxc4 {[%emt 0:00:50] ...f3 is the strong threat.} 37. a3 {[%emt 0:00:01]} b3 {[%emt 0:01:32]} 38. cxb3 {[%emt 0:00:07]} Rxe4 {[%emt 0:00:28] ( -> ...f3)} 39. Rc1 {[%emt 0:01:22]} Kxd5 {[%emt 0:01:04]} 40. Rc8 {[%emt 0:00:00]} Rd4 {[%emt 0:00:00] Weighted Error Value: White=1.41/Black=0.39} 0-1

[Event "Swietokrzyskie IM Chess-ch 2022"]
[Site "Zagnansk"]
[Date "2022.05.05"]
[Round "8.4"]
[White "Chylewski, FM Patryk"]
[Black "Vlachos, IM Anatole"]
[Result "1/2-1/2"]
[ECO "C85"]
[WhiteElo "2281"]
[BlackElo "2406"]
[Annotator "TA"]
[PlyCount "53"]
[EventDate "2022.04.29"]
[EventCountry "POL"]
[SourceTitle "playchess.com"]
[Source "ChessBase"]
[SourceQuality "1"]
[TimeControl "40/5400+30:1800+30"]

{[%evp 22,53,0,0,0,0,5,6,6,6,10,4,6,4,22,11,21,18,71,56,50,39,46,15,46,46,46,46,46,46,46,46,46,46]} 1. e4 {[%emt 0:00:03]} e5 {[%emt 0:00:07]} 2. Nf3 {[%emt 0:00:05]} Nc6 {[%emt 0:00:07]} 3. Bb5 {[%emt 0:00:05]} a6 {[%emt 0:00:06]} 4. Ba4 {[%emt 0:00:04]} Nf6 {[%emt 0:00:05][%cal Bg8f6,Bf6d7,Bd7c5][%mdl 32]} 5. O-O {[%emt 0:00:09]} Be7 {[%emt 0:00:26]} 6. Bxc6 {[%emt 0:00:24]} dxc6 {[%emt 0:00:05]} 7. d3 {[%emt 0:00:16]} Nd7 {[%emt 0:00:35]} 8. Nbd2 {[%emt 0:00:58]} O-O {[%emt 0:07:33]} 9. b3 {[%emt 0:00:25]} f6 {[%emt 0:06:06]} 10. Bb2 {[%emt 0:01:03]} Nc5 {[%emt 0:06:33]} 11. d4 {[%emt 0:00:20]} exd4 {[%emt 0:00:22]} 12. Nxd4 {[%emt 0:00:15]} Ne6 {[%emt 0:01:22] C85: Closed Ruy Lopez: Deferred Exchange Variation.} 13. N2f3 {[%emt 0:02:26]} Nxd4 {[%emt 0:01:21]} 14. Nxd4 {[%emt 0:00:37]} c5 {[%emt 0:09:05] The position is equal.} 15. Nf5 {[%emt 0:01:48]} Bxf5 {[%emt 0:00:06]} 16. exf5 {[%emt 0:00:05]} Qxd1 {[%emt 0:00:07]} 17. Raxd1 {[%emt 0:00:05]} Rad8 {[%emt 0:00:49] [#]} 18. c4 $146 {[%emt 0:00:54]} ({Predecessor:} 18. g3 Kf7 19. Kg2 Rfe8 20. Kf3 Rxd1 21. Rxd1 Bd6 22. a4 Re7 23. Bc3 Ke8 24. Re1 {½-½ (36) Konrad,E (2196)-Wiesinger,R (2167) Austria 2016}) 18... Rxd1 {[%emt 0:00:46]} 19. Rxd1 {[%emt 0:00:05]} Rd8 {[%emt 0:00:07]} (19... Bd6 $11) 20. Rxd8+ $16 {[%emt 0:00:07]} Bxd8 {[%emt 0:00:02][%mdl 4096] Endgame KB-KB} 21. f4 {[%emt 0:02:04]} Be7 {[%emt 0:00:41]} 22. Kf2 {[%emt 0:00:06]} Bd6 {[%emt 0:00:08]} 23. Kf3 {[%emt 0:00:25] White is slightly better.} Kf7 {[%emt 0:01:12]} 24. g4 {[%emt 0:00:20]} c6 {[%emt 0:00:45]} 25. h4 {[%emt 0:00:46]} Be7 {[%emt 0:01:16]} 26. Bc3 {[%emt 0:00:34]} b6 {[%emt 0:00:28]} 27. Ke4 {[%emt 0:07:37] Weighted Error Value: White=0.05 (flawless) /Black=0.12 (very precise)} 1/2-1/2

[Event "Swietokrzyskie IM Chess-ch 2022"]
[Site "Zagnansk"]
[Date "2022.05.05"]
[Round "8.5"]
[White "Malek, Jan"]
[Black "Manik, GM Mikulas"]
[Result "1/2-1/2"]
[ECO "B22"]
[WhiteElo "2316"]
[BlackElo "2367"]
[Annotator "TA"]
[PlyCount "124"]
[EventDate "2022.04.29"]
[EventCountry "POL"]
[SourceTitle "playchess.com"]
[Source "ChessBase"]
[SourceQuality "1"]
[TimeControl "40/5400+30:1800+30"]

{[%evp 23,124,13,36,35,37,25,25,8,52,31,54,33,92,85,89,63,61,32,53,56,52,41,81,0,0,0,0,0,0,0,0,0,0,0,0,0,0,-61,0,0,0,0,0,0,0,0,0,0,0,0,0,0,0,0,0,0,0,0,16,0,0,0,0,0,0,0,0,0,0,0,0,0,0,0,0,0,0,0,0,0,0,0,0,0,0,0,0,0,0,0,0,-8,0,0,0,0,0,0,0,-8,8,8,8]} 1. e4 {[%emt 0:00:02]} c5 {[%emt 0:00:02]} 2. c3 {[%emt 0:00:06]} Nf6 {[%emt 0:00:04]} 3. e5 {[%emt 0:00:03]} Nd5 {[%emt 0:00:04]} 4. Nf3 {[%emt 0:00:05]} d6 {[%emt 0:00:25]} 5. exd6 {[%emt 0:00:19]} Qxd6 {[%emt 0:00:32]} 6. d4 {[%emt 0:00:26]} e6 {[%emt 0:01:38]} 7. c4 {[%emt 0:07:34]} Nf6 {[%emt 0:02:20]} 8. Nc3 {[%emt 0:01:02]} a6 {[%emt 0:06:48]} 9. Be3 {[%emt 0:14:05]} cxd4 {[%emt 0:01:38]} 10. Nxd4 {[%emt 0:03:07]} Be7 {[%emt 0:00:37]} 11. Be2 {[%emt 0:02:13]} O-O {[%emt 0:00:22]} 12. O-O {[%emt 0:03:48]} Nbd7 {[%emt 0:00:06]} 13. Qc1 {[%emt 0:02:04] B22: Sicilian: 2 c3.} Qc7 {[%emt 0:01:28] [#]} 14. Rd1 $146 {[%emt 0:00:39]} ({Predecessor:} 14. b3 b6 15. Bf4 Bd6 16. Bxd6 Qxd6 17. Bf3 Rb8 18. Rd1 Ne5 19. Be2 Qc7 20. Qf4 Bb7 21. Qg3 {½-½ (28) Torok,T (2109)-Borda,L (2167) Budapest 2008}) 14... Re8 {[%emt 0:01:56]} 15. Bf4 {[%emt 0:03:35] White has an edge.} Qb6 {[%emt 0:06:08]} (15... e5 $5 {[%cal Re5f4]} 16. Bg3 Nf8 $14) 16. Nb3 {[%emt 0:04:05]} Nc5 {[%emt 0:03:14]} 17. Qe3 {[%emt 0:01:32]} Qb4 {[%emt 0:06:09]} (17... Bd7 $14) 18. Nxc5 {[%emt 0:07:48]} Qxc5 {[%emt 0:00:15]} 19. Bf3 {[%emt 0:19:03]} Qxc4 {[%emt 0:07:34]} 20. Rac1 {[%emt 0:00:24]} (20. Rd4 $5 {[%cal Rd4c4]} Qc5 21. Rad1 $14) 20... Qc5 {[%emt 0:02:11]} 21. Na4 {[%emt 0:03:32]} Qxe3 {[%emt 0:00:42]} 22. fxe3 {[%emt 0:00:16]} Nd7 {[%emt 0:04:46] Against Nb6} 23. Rxc8 {[%emt 0:07:18] 0x0.002b16f2506edp-1022s more active pieces. The black rooks are badly placed.} Raxc8 $11 {[%emt 0:00:42]} 24. Rxd7 {[%emt 0:00:01]} Rc1+ {[%emt 0:00:56]} 25. Kf2 {[%emt 0:02:07]} b5 {[%emt 0:03:22]} 26. Nc3 {[%emt 0:00:02]} Rc2+ {[%emt 0:00:26]} 27. Kg3 {[%emt 0:01:02]} Rxb2 {[%emt 0:01:29]} 28. Be5 {[%emt 0:05:42][%cal Oc3d5] Strongly threatening Nd5!} Rc2 {[%emt 0:14:09][%cal Bb2c2,Bc2c1,Bc1d1,Bd1d2][%mdl 32]} 29. Be4 {[%emt 0:00:56] A strong pair of Bishops.} Rc1 {[%emt 0:00:38]} 30. Bd4 {[%emt 0:03:39]} (30. Ne2 $11 Rc5 31. Bd4) 30... Bb4 {[%emt 0:04:28]} (30... e5 $15 31. Bxe5 Bc5) 31. Ne2 {[%emt 0:00:34] The position is equal.} Rd1 {[%emt 0:00:31]} 32. Ra7 {[%emt 0:02:29]} Rd2 {[%emt 0:00:59][%csl LRa2,LRe2]} 33. Kf3 {[%emt 0:00:05]} Rxa2 {[%emt 0:01:33]} 34. Bc6 {[%emt 0:00:17]} Rb8 {[%emt 0:02:31]} 35. Nf4 $1 {[%emt 0:00:26]} Bf8 {[%emt 0:13:21]} 36. Be5 {[%emt 0:00:05]} Rc8 {[%emt 0:01:31]} 37. Bd7 {[%emt 0:00:01]} Rd8 {[%emt 0:01:28]} 38. Bxb5 $1 {[%emt 0:00:38][%mdl 64] [#] Pin} Bc5 {[%emt 0:01:27]} 39. Rxa6 {[%emt 0:00:04]} Rxa6 {[%emt 0:00:09]} 40. Bxa6 {[%emt 0:00:00]} Ra8 {[%emt 0:00:00]} 41. Bd3 {[%emt 0:19:06]} Ra3 {[%emt 0:16:44] Threatens to win with ...g5.} 42. h4 {[%emt 0:01:41]} Ra5 {[%emt 0:04:42][%cal Oc5e3]} 43. Bb2 {[%emt 0:02:32]} Ra2 {[%emt 0:00:11]} 44. Bc3 {[%emt 0:00:07]} Ra3 {[%emt 0:00:15]} 45. Ne2 {[%emt 0:00:05]} Be7 {[%emt 0:01:18]} 46. g3 {[%emt 0:00:43]} Bf6 47. Bxf6 {[%emt 0:00:05] Hoping for Bc3.} Rxd3 {[%emt 0:00:25]} 48. Bd4 {[%emt 0:00:07]} Ra3 {[%emt 0:00:58]} 49. Nf4 {[%emt 0:00:40]} Ra5 {[%emt 0:00:33]} 50. g4 {[%emt 0:00:26]} Rb5 {[%emt 0:00:36] And now ...e5 would win.} (50... e5 $5 51. Bc3 Rb5 $11) 51. Ke4 {[%emt 0:00:43] Against e5} f5+ {[%emt 0:01:52]} 52. gxf5 {[%emt 0:00:15]} exf5+ {[%emt 0:00:02]} 53. Kf3 {[%emt 0:00:07]} Kf7 {[%emt 0:00:27]} 54. Nh5 {[%emt 0:00:04]} g6 {[%emt 0:01:06]} 55. Nf6 {[%emt 0:00:03]} h6 {[%emt 0:01:19]} 56. Kf4 {[%emt 0:10:04]} Rb1 {[%emt 0:00:34]} 57. h5 {[%emt 0:05:00]} Rf1+ {[%emt 0:01:18]} 58. Ke5 {[%emt 0:00:05]} gxh5 {[%emt 0:01:08]} 59. Nxh5 {[%emt 0:00:08]} Kg6 {[%emt 0:00:09]} 60. Nf4+ {[%emt 0:01:07]} Kg5 {[%emt 0:00:07]} 61. e4 {[%emt 0:00:06]} Rxf4 {[%emt 0:02:53]} 62. Be3 {[%emt 0:00:08][%csl LRf4,LRf5][%mdl 64] [#] White wants to mate with exf5. Pin} fxe4 {[%emt 0:00:02] Weighted Error Value: White=0.08 (flawless) /Black=0.07 (flawless)} 1/2-1/2

[Event "Swietokrzyskie IM Chess-ch 2022"]
[Site "Zagnansk"]
[Date "2022.05.06"]
[Round "9.2"]
[White "Vlachos, IM Anatole"]
[Black "Malek, Jan"]
[Result "1-0"]
[ECO "B27"]
[WhiteElo "2406"]
[BlackElo "2316"]
[Annotator "TA"]
[PlyCount "83"]
[EventDate "2022.04.29"]
[EventCountry "POL"]
[SourceTitle "playchess.com"]
[Source "ChessBase"]
[SourceQuality "1"]
[TimeControl "40/5400+30:1800+30"]

{[%evp 11,83,33,36,33,43,33,43,31,54,47,45,32,54,29,31,29,79,75,90,91,89,86,90,98,84,88,111,96,104,87,94,98,96,90,104,91,227,222,200,222,233,231,233,141,140,141,141,144,123,93,269,230,233,228,252,223,386,385,666,708,1152,1214,1192,1127,987,856,1974,1886,29988,29989,29990,29991,29991,29992]} 1. e4 {[%emt 0:00:03]} c5 {[%emt 0:00:09]} 2. Nf3 {[%emt 0:00:10]} g6 {[%emt 0:00:06]} 3. c3 {[%emt 0:00:26]} Bg7 {[%emt 0:00:18]} 4. d4 {[%emt 0:00:10]} cxd4 {[%emt 0:00:05]} 5. cxd4 {[%emt 0:00:04]} d5 {[%emt 0:00:05]} 6. e5 {[%emt 0:00:23]} Bg4 {[%emt 0:00:05]} 7. Bb5+ {[%emt 0:01:42] B27: Sicilian: 2 Nf3, unusual Black 2nd moves.} Nd7 {[%emt 0:00:11] seems to push 7...Nc6 aside.} 8. Nbd2 {[%emt 0:00:38]} Bxf3 {[%emt 0:02:06]} 9. Qxf3 {[%emt 0:00:07] White is slightly better.} (9. gxf3 e6 $15) 9... a6 {[%emt 0:00:05]} 10. Bd3 {[%emt 0:01:51]} e6 {[%emt 0:00:08] [#]} 11. Qe2 $146 {[%emt 0:06:06]} ({Predecessor:} 11. O-O Ne7 12. Qe2 Qb6 13. Nf3 Nf5 14. Bxf5 exf5 15. Be3 Nf8 16. Rac1 Ne6 17. Ng5 {1-0 (51) Gavrilescu,D (2437)-Reich,T (2373) Zadar 2017}) 11... Ne7 {[%emt 0:00:34][%cal Bg8e7,Be7c6,Bc6b4][%mdl 32]} 12. Nf3 {[%emt 0:02:00]} Nc6 {[%emt 0:01:53]} 13. h4 {[%emt 0:04:16]} Qb6 {[%emt 0:09:45]} (13... f6 $11) 14. Be3 $16 {[%emt 0:01:22]} h6 {[%emt 0:11:16]} 15. O-O {[%emt 0:07:03]} Nb4 {[%emt 0:00:18]} 16. Bb1 {[%emt 0:01:14]} Rc8 {[%emt 0:00:03]} 17. a3 {[%emt 0:02:02]} Nc6 {[%emt 0:00:02]} 18. Bd3 {[%emt 0:04:59]} Rc7 {[%emt 0:16:33]} 19. b4 {[%emt 0:20:49]} O-O {[%emt 0:03:23]} 20. Rac1 {[%emt 0:01:33][%cal Oh4h5] Black must now prevent h5!} Rfc8 {[%emt 0:00:29]} 21. g4 {[%emt 0:02:35]} Ne7 {[%emt 0:05:08]} 22. Rxc7 {[%emt 0:00:31] White is more active.} Qxc7 {[%emt 0:00:28]} 23. Rc1 {[%emt 0:02:25] Inhibits Qc3.} Qxc1+ {[%emt 0:10:24]} (23... Qb8 $16 {was called for.}) 24. Bxc1 $18 {[%emt 0:00:03]} Rxc1+ {[%emt 0:00:02]} 25. Kg2 {[%emt 0:00:42]} Rc3 {[%emt 0:02:02]} 26. a4 {[%emt 0:01:40][%cal Ba3a4,Ba4a5,Ba5a6,Ba6a7][%mdl 32]} Nb6 {[%emt 0:04:17][%cal Bd7b6,Bb6c4,Bc4d2][%mdl 32]} 27. Bxa6 {[%emt 0:02:33]} bxa6 {[%emt 0:01:10]} 28. Qxa6 {[%emt 0:00:02]} Nc4 {[%emt 0:01:49]} 29. a5 {[%emt 0:09:55][%mdl 1024] Strongly threatening Qb5. White has strong compensation.} Bf8 {[%emt 0:09:30][%cal Og6g5]} 30. Qb7 {[%emt 0:00:57]} Nc8 $2 {[%emt 0:03:06]} 31. Ng1 {[%emt 0:04:01]} (31. Qxc8 $2 Ne3+ $1 {[%mdl 512]} 32. fxe3 Rxc8 $19) 31... Rc2 {[%emt 0:02:36][%cal Og8g7]} 32. Kh1 {[%emt 0:01:01]} Nd2 {[%emt 0:02:57]} 33. a6 {[%emt 0:02:31] Hoping for b5.} Rc1 $2 {[%emt 0:08:00]} (33... Ne4 $2 34. Nh3) (33... Kg7 34. b5 (34. a7 Nxa7 35. Qxa7 Bxb4 $15) (34. Ne2 Ne4 $11) 34... Be7) 34. Kh2 {[%emt 0:01:07]} ({Inferior is} 34. a7 {[#]} Nxa7 $1 35. Qxa7 Nf3 $11) (34. Kg2 Nc4 $16) 34... Bxb4 $2 {[%emt 0:05:00]} (34... Ne4 35. Ne2 (35. Nh3 Nd2 $16) 35... Rc2) 35. Qxb4 {[%emt 0:00:12]} Nc4 {[%emt 0:00:07]} 36. Qc5 {[%emt 0:03:08]} N8b6 {[%emt 0:00:18]} 37. a7 {[%emt 0:00:29]} Ra1 {[%emt 0:00:21]} 38. Qe7 {[%emt 0:00:20]} Kg7 {[%emt 0:00:46]} 39. Nh3 {[%emt 0:00:33] Threatening mate with Nf4.} Ra3 {[%emt 0:01:05]} 40. Nf4 {[%emt 0:00:00] White mates.} Kg8 {[%emt 0:00:00]} 41. h5 {[%emt 0:16:01]} Rf3 {[%emt 0:15:57] [#]} 42. Nxg6 $1 {[%emt 0:00:48] Weighted Error Value: White=0.08 (flawless) /Black=0.56} 1-0